bitfinex-derivatives/quotes_ETHF0:USTF0_20251008
["timestamp","ask_amount","ask_price","bid_price","bid_amount"]
[1759886562161,0.4466,4481.1,4481.0,0.9069]
[1759886562360,3.40182122,4481.1,4481.0,0.9069]
[1759886562859,3.92612122,4481.1,4480.5,0.1276]
[1759886563062,0.7459,4480.6,4480.5,0.4404]
[1759886563363,3.8753654,4480.6,4480.5,0.4404]
[1759886563564,3.8753654,4480.6,4480.5,0.7793]
[1759886564662,3.8753654,4480.6,4480.5,0.2158]
[1759886565163,3.5558654,4480.6,4480.5,0.9069]
[1759886565964,3.8753654,4480.6,4480.5,0.2158]
[1759886566471,3.8753654,4480.6,4480.5,0.5547]
[1759886568972,3.8753654,4480.6,4480.5,0.95623]
[1759886570473,3.3308654,4480.6,4480.5,1.30843]
[1759886570776,2.9044654,4480.6,4480.5,1.30843]
[1759886571867,0.6514,4481.1,4481.0,0.2246]
[1759886572066,0.7459,4480.6,4480.5,0.225]
[1759886572273,1.24463,4480.5,4480.4,0.00262102]
[1759886572472,1.46963,4480.5,4480.4,0.00262102]
[1759886572677,4.35494059,4480.5,4480.4,0.00262102]
[1759886573271,3.95341059,4480.5,4480.4,0.00262102]
[1759886573570,4.35494059,4480.5,4480.4,0.00262102]
[1759886574174,2.88531059,4480.5,4480.4,1.18346102]
[1759886574369,0.225,4480.8,4480.7,0.40152]
[1759886574573,0.00231356,4481.5,4481.4,1.18075]
[1759886574776,0.44891356,4481.5,4481.4,1.72640926]
[1759886574967,3.30535196,4481.5,4481.4,1.72640926]
[1759886575174,3.30535196,4481.5,4481.4,0.7793]
[1759886575375,3.08035196,4481.5,4481.4,0.7793]
[1759886575569,3.30535196,4481.5,4481.4,0.7793]
[1759886576480,3.82965196,4481.5,4481.4,0.7793]
[1759886576681,3.51015196,4481.5,4481.4,0.7793]
[1759886578067,3.08375196,4481.5,4481.4,0.7793]
[1759886578274,3.30925196,4481.5,4481.4,0.7793]
[1759886578576,2.85875196,4481.5,4481.4,3.9871]
[1759886578974,0.00231356,4481.5,4481.4,3.9871]
[1759886579377,0.00231356,4481.5,4481.4,8.9871]
[1759886580083,0.5361,4482.6,4482.5,0.8777]
[1759886580274,1.228651,4482.6,4482.5,0.8777]
[1759886580475,4.35399353,4482.6,4482.5,0.747]
[1759886580876,4.35399353,4482.6,4482.5,0.2195]
[1759886581075,4.3566982,4482.6,4482.5,0.2195]
[1759886581782,0.7508,4482.3,4482.2,0.5419]
[1759886581981,0.5356,4482.3,4481.6,0.3224]
[1759886582179,0.4402,4481.5,4481.4,4.35625]
[1759886582377,0.4505,4481.8,4481.7,0.4246]
[1759886582588,0.9758,4481.8,4481.7,0.747]
[1759886582771,3.89790836,4481.8,4481.7,0.747]
[1759886582972,3.89790836,4481.8,4481.7,0.5419]
[1759886583375,3.58730836,4481.8,4481.7,0.747]
[1759886583781,3.21050467,4482.6,4482.0,0.5553]
[1759886583978,3.21050467,4482.6,4482.5,0.8777]
[1759886584283,6.52671335,4482.6,4482.5,0.8777]
[1759886584684,7.23866335,4482.6,4482.1,0.40139]
[1759886584983,0.1301,4482.0,4481.4,3.2078]
[1759886585176,0.7508,4481.5,4481.4,3.4273]
[1759886585382,0.7508,4481.5,4481.4,3.7497]
[1759886585685,3.59092406,4481.5,4481.4,3.7497]
[1759886587083,3.28032406,4481.5,4481.4,3.9548]
[1759886587284,3.2078,4482.1,4482.0,0.2195]
[1759886587285,3.4333,4482.1,4482.0,0.2195]
[1759886587479,3.6583,4482.1,4482.0,0.5419]
[1759886587687,3.63345707,4481.9,4481.8,0.2195]
[1759886587882,4.25986707,4481.9,4481.8,0.2195]
[1759886588387,4.25986707,4481.9,4481.5,0.85454]
[1759886588587,0.7508,4481.7,4481.6,0.5419]
[1759886590189,0.4402,4481.7,4481.6,0.747]
[1759886590989,0.7508,4481.7,4481.6,0.747]
[1759886591880,0.4402,4481.7,4481.6,1.14844]
[1759886592183,0.5253,4481.8,4481.7,0.5419]
[1759886592381,0.7508,4481.8,4481.7,0.5419]
[1759886592578,3.39665011,4481.8,4481.7,0.747]
[1759886592787,2.95645011,4481.8,4481.7,1.14843]
[1759886593178,2.89011874,4481.9,4481.8,0.94332]
[1759886593391,0.225,4482.0,4481.8,0.82602]
[1759886593589,0.8519,4482.0,4481.9,0.747]
[1759886593887,3.73171874,4482.0,4481.9,0.747]
[1759886594086,3.33031874,4482.0,4481.9,0.747]
[1759886594287,3.64091874,4482.0,4481.9,0.747]
[1759886594492,4.04231874,4482.0,4481.9,0.747]
[1759886594788,0.4402,4481.5,4481.4,3.5302]
[1759886594992,0.7508,4481.5,4481.4,3.7497]
[1759886595283,3.64901978,4481.5,4481.4,3.4273]
[1759886595684,3.64901978,4481.5,4481.4,3.7497]
[1759886596688,4.27546978,4481.5,4481.4,3.2078]
[1759886596881,4.00221978,4481.5,4481.4,3.2078]
[1759886597081,4.40366978,4481.5,4481.4,3.2078]
[1759886598378,0.7508,4480.9,4480.4,4.70912425]
[1759886598586,0.225,4481.1,4480.8,0.4246]
[1759886598786,0.4505,4481.1,4481.0,0.8777]
[1759886598989,0.6652,4481.1,4481.0,0.8777]
[1759886599185,3.61896461,4481.1,4481.0,0.8777]
[1759886599388,3.92956461,4481.1,4481.0,0.5419]
[1759886600584,3.92956461,4481.1,4481.0,0.747]
[1759886600780,3.70456461,4481.1,4481.0,1.14849]
[1759886600991,3.17876461,4481.1,4481.0,1.27919]
[1759886601187,2.95376461,4481.1,4481.0,6.27919]
[1759886601390,2.95376461,4481.1,4481.0,9.48699]
[1759886602188,3.17926461,4481.1,4481.0,4.48699]
[1759886603084,3.17926461,4481.1,4481.0,4.0855]
[1759886603290,3.39396461,4481.1,4481.0,4.0855]
[1759886603690,0.2255,4481.1,4481.0,4.48699]
[1759886603890,0.4505,4481.4,4481.3,0.4246]
[1759886604186,3.62914633,4481.4,4481.3,0.747]
[1759886605004,3.93974633,4481.4,4481.3,0.747]
[1759886606794,0.2255,4481.4,4481.3,1.14846]
[1759886607294,0.4402,4481.4,4481.3,1.14846]
[1759886607797,0.4402,4481.4,4481.3,0.747]
[1759886607991,0.7659,4481.4,4481.3,0.747]
[1759886608891,0.7659,4481.4,4481.3,1.14846]
[1759886609095,3.60914,4482.7,4482.2,0.71358]
[1759886609290,0.22240467,4482.6,4482.5,0.8777]
[1759886609495,0.44740467,4482.6,4482.5,0.8777]
[1759886609696,0.44740467,4482.6,4482.5,1.27906]
[1759886610089,0.44740467,4482.6,4482.5,1.45439291]
[1759886610597,0.44740467,4482.6,4482.5,1.27906]
[1759886611595,0.00270467,4482.6,4482.5,4.60847695]
[1759886612190,0.00270467,4482.6,4482.5,9.78392825]
[1759886612589,2.00578,4484.8,4482.5,9.78392825]
[1759886612590,0.1027,4485.0,4482.8,1.00333]
[1759886612788,0.2197,4484.5,4484.4,0.7541]
[1759886613292,3.05988082,4484.5,4484.4,0.7541]
[1759886613493,0.2197,4484.5,4484.4,0.7541]
[1759886613690,0.3257,4485.5,4485.0,0.8777]
[1759886613894,0.2197,4485.1,4485.0,0.5655]
[1759886614592,0.2197,4485.1,4485.0,0.5311]
[1759886614593,0.7702,4485.1,4485.0,0.5311]
[1759886614893,0.7702,4484.7,4484.4,0.31469928]
[1759886615089,0.7702,4484.6,4484.5,0.7541]
[1759886615287,0.4554,4484.5,4484.4,0.00249928]
[1759886615491,1.1249,4484.5,4484.4,0.00249928]
[1759886615697,4.00984602,4484.5,4484.4,0.00249928]
[1759886619797,3.32944602,4484.5,4484.4,0.83728928]
[1759886620100,0.4309,4484.7,4484.6,0.5546]
[1759886620296,0.7612,4484.7,4484.6,0.5546]
[1759886620491,0.7612,4484.7,4484.4,0.62868928]
[1759886620492,3.59382212,4484.7,4484.4,0.00249928]
[1759886620701,0.7612,4484.5,4484.4,0.00249928]
[1759886620999,7.15302212,4484.5,4484.4,0.00249928]
[1759886621697,12.15302212,4484.5,4484.4,0.00249928]
[1759886622302,7.15302212,4484.5,4484.4,0.00249928]
[1759886623103,0.7612,4483.6,4483.5,0.5546]
[1759886623399,0.4309,4483.3,4483.1,0.3296]
[1759886623597,0.7612,4483.2,4483.1,0.5546]
[1759886624002,0.2125,4483.2,4483.1,1.16671169]
[1759886625602,0.5428,4484.2,4483.9,0.2086]
[1759886625802,0.40114,4484.5,4484.2,0.3296]
[1759886626008,0.2125,4484.5,4484.4,0.5546]
[1759886626196,0.3303,4484.7,4484.4,0.7632]
[1759886626395,0.2125,4484.9,4484.8,0.7632]
[1759886626601,3.30840753,4484.9,4484.8,0.7632]
[1759886627205,3.85710753,4484.9,4484.8,0.7632]
[1759886627608,3.63210753,4484.9,4484.8,0.7632]
[1759886627809,3.85710753,4484.9,4484.8,0.7632]
[1759886628807,0.2125,4484.2,4484.1,0.3296]
[1759886629010,0.7612,4484.2,4484.1,0.95577]
[1759886629309,0.7612,4484.3,4484.2,0.5546]
[1759886629706,3.60532736,4484.3,4484.2,0.5546]
[1759886630008,3.27502736,4484.3,4484.2,0.7632]
[1759886632414,3.60532736,4484.3,4484.2,0.7632]
[1759886632617,0.4309,4484.1,4483.8,0.3296]
[1759886632807,0.4309,4484.1,4483.8,0.5546]
[1759886632808,0.7612,4483.9,4483.8,0.5546]
[1759886633007,0.40118,4484.0,4483.9,0.3296]
[1759886633008,3.28616753,4484.0,4483.9,0.3296]
[1759886633209,0.2125,4483.7,4483.6,0.83482]
[1759886633410,0.2125,4483.7,4483.6,0.4336]
[1759886633804,0.2125,4483.7,4483.6,0.7632]
[1759886634010,0.40119,4484.0,4483.6,0.7632]
[1759886634210,0.40119,4484.0,4483.7,0.3296]
[1759886634406,0.225,4484.1,4484.0,0.5573]
[1759886634607,0.225,4484.1,4484.0,0.8869]
[1759886634812,3.13258426,4484.1,4484.0,0.8869]
[1759886635706,3.12008426,4484.1,4484.0,0.8869]
[1759886638714,2.90758426,4484.1,4484.0,0.8869]
[1759886638919,0.4432,4484.4,4484.3,0.7432]
[1759886639118,0.4432,4484.4,4484.3,1.90284661]
[1759886640122,0.9489,4484.9,4484.8,0.7432]
[1759886640321,0.87417119,4484.9,4484.8,1.50169661]
[1759886640519,3.59306502,4484.9,4484.8,1.90280661]
[1759886640719,0.61926,4485.4,4485.3,0.7432]
[1759886640920,1.85873324,4485.4,4485.3,0.7432]
[1759886641222,0.2182,4484.7,4484.6,1.14433]
[1759886641526,0.9844,4485.1,4485.0,0.92669]
[1759886641725,0.6548,4485.1,4485.0,1.14429]
[1759886641923,3.33801283,4485.1,4485.0,1.26669]
[1759886642121,2.90821283,4485.1,4485.0,4.47449]
[1759886642429,2.90821283,4485.1,4485.0,4.83189661]
[1759886642430,0.7594,4485.1,4485.0,4.83189661]
[1759886642626,0.4298,4485.1,4485.0,4.83189661]
[1759886642921,2.88113633,4485.1,4485.0,5.00893289]
[1759886643121,0.4036602,4485.5,4485.4,0.7432]
[1759886643318,1.30716622,4485.5,4485.4,1.50169661]
[1759886643514,1.16047,4485.2,4485.1,0.75849661]
[1759886643721,1.63417602,4485.2,4485.1,0.75849661]
[1759886643922,4.59344848,4485.2,4485.1,1.28409661]
[1759886644124,4.19237848,4485.2,4485.1,1.28409661]
[1759886644428,3.86277848,4485.2,4485.1,1.50169661]
[1759886644819,0.4036602,4485.5,4485.4,0.82526]
[1759886645118,0.47626634,4485.5,4485.4,1.90275661]
[1759886645529,0.0026102,4485.5,4485.4,1.90275661]
[1759886648931,0.0026102,4485.5,4485.4,2.12775661]
[1759886653834,1.16047,4485.2,4485.1,3.4144]
[1759886654135,1.63355976,4485.2,4485.1,4.03308]
[1759886654335,1.63355976,4485.2,4485.1,4.35208]
[1759886654734,1.63355976,4485.2,4485.1,3.951]
[1759886655534,1.23248976,4485.2,4485.1,4.35208]
[1759886655731,0.90288976,4485.2,4485.1,4.35208]
[1759886656133,0.69128976,4485.2,4485.1,4.35208]
[1759886656740,0.69128976,4485.2,4485.1,4.57708]
[1759886657843,1.09235976,4485.2,4485.1,4.57708]
[1759886659042,0.69128976,4485.2,4485.1,4.57708]
[1759886660342,0.47308976,4485.2,4485.1,4.57708]
[1759886661441,0.0026102,4485.5,4485.4,1.14426]
[1759886661638,0.0026102,4485.5,4485.4,2.12775661]
[1759886663734,0.0026102,4485.5,4485.4,7.12775661]
[1759886666239,0.40107,4485.2,4485.1,3.7334]
[1759886666446,1.16047,4485.2,4485.1,3.951]
[1759886666644,0.7594,4485.2,4485.1,4.35208]
[1759886667046,1.16047,4485.2,4485.1,3.951]
[1759886667345,0.2182,4485.2,4485.1,4.35208]
[1759886667639,1.14467,4485.2,4485.1,3.7334]
[1759886667845,3.99080044,4485.2,4485.1,3.2078]
[1759886668445,4.46494529,4485.2,4485.1,3.2078]
[1759886668945,9.46494529,4485.2,4485.1,3.2078]
[1759886669848,1.13361,4484.8,4484.7,0.2244]
[1759886670647,0.4197,4484.8,4484.7,0.7662]
[1759886671041,0.7325,4484.8,4484.7,0.7662]
[1759886673247,0.4197,4484.8,4484.7,0.7662]
[1759886675046,0.7325,4484.8,4484.7,0.7662]
[1759886675247,0.40112,4484.7,4484.6,3.96629661]
[1759886675550,4.07927353,4484.7,4484.6,3.96629661]
[1759886675747,3.25845353,4484.7,4484.1,3.61368226]
[1759886675953,1.13366,4484.2,4484.1,3.93408226]
[1759886676257,4.07931353,4484.2,4484.1,3.93408226]
[1759886676847,3.67815353,4484.2,4484.1,4.73249661]
[1759886677051,0.3128,4485.1,4484.1,4.46678187]
[1759886677250,1.13358,4485.1,4485.0,0.5448]
[1759886677450,1.83354393,4485.1,4485.0,0.5448]
[1759886677750,4.68613458,4485.1,4485.0,0.5448]
[1759886677947,0.82081,4484.8,4484.7,0.98289661]
[1759886678145,1.20846393,4484.8,4484.7,1.52469661]
[1759886678350,3.58509065,4484.8,4484.7,1.52469661]
[1759886679145,3.58509065,4484.8,4484.7,0.7662]
[1759886680347,3.98620065,4484.8,4484.6,0.40113]
[1759886680546,3.98620065,4484.8,4484.2,0.4472]
[1759886680547,0.2193,4484.3,4484.2,0.4472]
[1759886680749,0.2193,4484.3,4484.2,1.0025]
[1759886680951,0.744,4484.8,4484.7,1.17962]
[1759886681251,3.32275516,4484.8,4484.7,4.38742]
[1759886682653,0.3188102,4485.5,4485.4,0.40106]
[1759886682851,1.22245339,4485.5,4485.4,1.17956]
[1759886683050,4.03054655,4485.5,4485.4,1.17956]
[1759886683250,4.74779655,4485.5,4485.4,0.3348]
[1759886683449,4.74779655,4485.5,4485.4,0.95906]
[1759886685548,0.40107,4485.3,4485.0,0.357]
[1759886685753,0.82887,4485.3,4485.2,0.62427]
[1759886685954,1.30476446,4485.3,4485.2,0.2232]
[1759886686152,4.53897353,4485.3,4485.2,0.40107]
[1759886687456,1.14512,4484.8,4484.7,0.40112]
[1759886687645,0.744,4484.8,4484.7,0.40112]
[1759886687847,3.665233,4484.8,4484.7,0.95912]
[1759886688756,3.665233,4484.8,4484.7,1.17962]
[1759886694961,4.14152258,4484.8,4484.7,1.17962]
[1759886695258,3.82548504,4484.8,4484.7,1.17962]
[1759886695457,1.14506,4485.4,4485.3,0.95907]
[1759886695653,1.44442119,4485.4,4485.3,1.17957]
[1759886695961,4.39317231,4485.4,4485.3,1.17957]
[1759886697461,0.47642119,4485.4,4485.3,1.40357]
[1759886697657,0.0026102,4485.5,4485.4,0.7624]
[1759886697861,0.47916264,4485.5,4485.4,0.7624]
[1759886699160,0.0026102,4485.5,4485.4,0.7624]
[1759886700358,0.90417939,4486.5,4486.4,1.16337]
[1759886700558,1.60448951,4486.5,4486.4,1.16337]
[1759886700960,0.7486,4486.0,4485.9,3.43]
[1759886701153,1.62591707,4486.0,4485.9,3.7487]
[1759886701359,0.43586442,4486.0,4485.9,3.97299414]
[1759886701566,0.00246442,4486.0,4485.9,4.91756991]
[1759886702160,0.75106442,4486.0,4485.9,3.52929414]
[1759886702361,0.75106442,4486.0,4485.9,3.21059414]
[1759886702362,0.87746442,4486.0,4485.9,3.21059414]
[1759886702564,3.7855756,4486.0,4485.9,3.21059414]
[1759886702762,4.48552539,4486.0,4485.9,3.43279414]
[1759886702967,4.35912539,4486.0,4485.9,3.75149414]
[1759886703466,4.35912539,4486.0,4485.9,3.97299414]
[1759886704359,4.04392539,4486.0,4485.9,3.97299414]
[1759886704560,3.81992539,4486.0,4485.9,3.97299414]
[1759886705764,3.81992539,4486.0,4485.9,4.37400414]
[1759886707164,4.13512539,4486.0,4485.9,4.37400414]
[1759886708066,3.81992539,4486.0,4485.9,4.37400414]
[1759886710167,4.13512539,4486.0,4485.9,4.37400414]
[1759886711366,3.81992539,4486.0,4485.9,4.37400414]
[1759886712268,3.81992539,4486.0,4485.9,4.59800414]
[1759886712670,3.3439756,4486.0,4485.9,4.59800414]
[1759886712870,0.00246442,4486.0,4485.9,4.59800414]
[1759886714767,0.47077939,4486.5,4486.4,1.16337]
[1759886714966,0.47077939,4486.5,4486.4,5.53974577]
[1759886715267,1.00215,4487.7,4487.6,0.7624]
[1759886715268,3.9564,4487.7,4487.6,0.7624]
[1759886715466,4.65696862,4487.7,4487.6,0.7624]
[1759886715665,7.57767488,4487.7,4487.6,0.7624]
[1759886715862,7.35579809,4487.7,4487.6,0.7624]
[1759886716071,7.35579809,4487.7,4487.6,0.9864]
[1759886716072,0.00212321,4487.7,4487.6,0.9864]
[1759886716572,0.7486,4487.5,4487.4,3.2078]
[1759886716773,0.7486,4487.5,4487.4,3.9702]
[1759886716967,0.00212321,4487.7,4487.6,0.7624]
[1759886717271,0.00212321,4487.7,4487.6,1.70697577]
[1759886718671,0.22832321,4487.7,4487.6,1.70697577]
[1759886718972,0.00212321,4487.7,4487.6,1.70697577]
[1759886719467,0.00212321,4487.7,4487.6,1.93097577]
[1759886720873,3.70928378,4487.7,4487.6,1.93097577]
[1759886721075,3.70928378,4487.7,4487.6,0.5409]
[1759886721269,1.14946,4487.6,4487.5,0.7624]
[1759886721873,0.7486,4487.6,4487.5,0.8869]
[1759886722076,0.4334,4487.6,4487.5,0.8869]
[1759886724275,0.7486,4487.6,4487.5,0.8869]
[1759886724675,0.7486,4487.6,4487.5,0.5409]
[1759886725070,0.4334,4487.6,4487.5,0.8869]
[1759886725571,0.22832321,4487.7,4487.6,1.16326]
[1759886725770,0.22832321,4487.7,4487.6,2.10783577]
[1759886725976,3.18898306,4487.7,4487.6,2.10783577]
[1759886727169,0.022,4487.9,4487.8,1.13114]
[1759886727379,0.022,4487.9,4487.8,2.29971577]
[1759886728276,0.0246673,4487.9,4487.8,2.29971577]
[1759886732886,0.7759673,4487.9,4487.8,0.7303]
[1759886733178,0.0246673,4487.9,4487.8,1.89887577]
[1759886736888,0.0246673,4487.9,4487.8,2.29971577]
[1759886739091,0.2398673,4487.9,4487.8,2.29971577]
[1759886739493,0.0246673,4487.9,4487.8,2.29971577]
[1759886739885,0.4254973,4487.9,4487.8,2.29971577]
[1759886740085,0.6406973,4487.9,4487.8,2.29971577]
[1759886740280,0.6406973,4487.9,4487.8,1.89887577]
[1759886740787,1.1679973,4487.9,4487.8,1.89887577]
[1759886741186,1.1679973,4487.9,4487.8,2.29971577]
[1759886742490,0.4603673,4487.9,4487.8,2.29971577]
[1759886742690,0.0246673,4487.9,4487.8,2.29971577]
[1759886742990,1.13425,4488.8,4488.7,0.7587]
[1759886743193,1.1343,4488.3,4488.2,3.7431]
[1759886743392,1.1343,4488.3,4488.2,4.91167577]
[1759886743585,1.1343,4488.3,4488.2,5.13507577]
[1759886743786,1.136904,4488.3,4488.2,5.13507577]
[1759886744187,1.136904,4488.3,4488.2,4.91107577]
[1759886744188,1.61053352,4488.3,4488.2,4.91107577]
[1759886744695,1.13433,4487.9,4487.8,1.88071577]
[1759886744890,0.90032952,4487.9,4487.8,2.32811577]
[1759886745089,0.67982952,4487.9,4487.8,2.32811577]
[1759886745393,1.08065952,4487.9,4487.8,2.32811577]
[1759886746393,1.08065952,4487.9,4487.8,1.92727577]
[1759886746789,1.08065952,4487.9,4487.8,2.32811577]
[1759886747193,0.67982952,4487.9,4487.8,2.32811577]
[1759886748991,1.08065952,4487.9,4487.8,2.32811577]
[1759886749295,1.20712952,4487.9,4487.8,2.32811577]
[1759886749490,0.90032952,4487.9,4487.8,2.32811577]
[1759886749794,1.30115952,4487.9,4487.8,2.32811577]
[1759886750491,0.40085,4487.7,4487.6,3.2078]
[1759886750691,1.13435,4487.7,4487.6,3.7431]
[1759886750885,1.60797952,4487.7,4487.6,4.14396]
[1759886751286,1.60797952,4487.7,4487.6,3.7431]
[1759886751698,1.60797952,4487.7,4487.6,4.14396]
[1759886752291,1.20712952,4487.7,4487.6,4.36736]
[1759886752489,1.60797952,4487.7,4487.6,4.36736]
[1759886753199,1.60797952,4487.7,4487.6,5.12464991]
[1759886754195,1.13435,4487.7,4487.6,5.12464991]
[1759886754596,1.13435,4487.7,4487.6,4.72378991]
[1759886754996,0.7335,4487.7,4487.6,5.12464991]
[1759886755501,0.4267,4487.7,4487.6,5.12464991]
[1759886757299,0.82755,4487.7,4487.6,5.12464991]
[1759886757492,1.14835,4487.7,4487.6,5.12464991]
[1759886758491,0.211404,4488.3,4488.2,0.2248]
[1759886758698,0.81371,4488.2,4488.1,0.75728991]
[1759886758898,4.44216712,4488.2,4488.1,0.75728991]
[1759886759099,1.13452,4488.0,4487.9,0.3183]
[1759886759400,4.44217712,4488.0,4487.9,1.15363]
[1759886759601,0.47447807,4488.0,4487.9,1.15363]
[1759886760000,0.2088,4488.2,4488.1,1.15361]
[1759886760201,0.002604,4488.3,4488.2,1.15361]
[1759886760406,0.47704427,4488.3,4488.2,1.15361]
[1759886762499,0.68584427,4488.3,4488.2,1.15361]
[1759886762693,1.21074427,4488.3,4488.2,0.7528]
[1759886762897,1.21074427,4488.3,4488.2,1.15361]
[1759886763504,0.88994427,4488.3,4488.2,1.15361]
[1759886763811,0.68584427,4488.3,4488.2,1.15361]
[1759886764606,0.68584427,4488.3,4488.2,4.36141]
[1759886766700,1.08664427,4488.3,4488.2,4.36141]
[1759886768009,0.68584427,4488.3,4488.2,4.36141]
[1759886769111,1.08664427,4488.3,4488.2,4.36141]
[1759886769409,1.61154427,4488.3,4488.2,4.36141]
[1759886769710,1.29074427,4488.3,4488.2,4.36141]
[1759886770013,1.08664427,4488.3,4488.2,4.36141]
[1759886770303,1.08664427,4488.3,4488.2,3.9606]
[1759886770607,0.81372,4488.0,4487.9,0.5431]
[1759886770912,0.40085,4487.7,4487.6,3.60866]
[1759886771209,1.13455,4487.7,4487.6,4.80044991]
[1759886771409,1.13455,4487.7,4487.6,4.39958991]
[1759886771710,1.13455,4487.7,4487.6,5.11874991]
[1759886772112,1.13455,4487.7,4487.6,4.71788991]
[1759886773111,0.7337,4487.7,4487.6,5.11874991]
[1759886773311,0.7337,4487.7,4487.6,4.71788991]
[1759886773510,1.13455,4487.7,4487.6,4.71788991]
[1759886774114,1.61238269,4487.7,4487.6,4.71788991]
[1759886775112,1.61238269,4487.7,4487.6,5.11874991]
[1759886776017,1.61238269,4487.7,4487.6,4.71788991]
[1759886776218,1.61238269,4487.7,4487.6,4.50818991]
[1759886776416,1.61238269,4487.7,4487.6,4.90904991]
[1759886776918,1.61238269,4487.7,4487.6,5.11874991]
[1759886777416,1.21153269,4487.7,4487.6,5.11874991]
[1759886777609,0.89073269,4487.7,4487.6,5.11874991]
[1759886777810,1.29158269,4487.7,4487.6,4.71788991]
[1759886778005,1.61238269,4487.7,4487.6,4.71788991]
[1759886778218,4.50971783,4487.7,4487.6,4.50818991]
[1759886778620,4.50971783,4487.7,4487.6,3.2078]
[1759886778916,4.50971783,4487.7,4487.6,5.11874991]
[1759886778917,3.37516783,4487.7,4487.6,5.11874991]
[1759886779118,0.47783269,4487.7,4487.6,5.87603982]
[1759886779315,0.47783269,4487.7,4487.6,5.11874991]
[1759886780113,0.3208,4488.2,4488.1,0.40081]
[1759886780316,0.612204,4488.3,4488.2,1.15361]
[1759886780513,1.61497379,4488.3,4488.2,1.15361]
[1759886780715,4.48844945,4488.3,4488.2,1.15361]
[1759886781519,3.76684945,4488.3,4488.2,1.15361]
[1759886781717,4.16764945,4488.3,4488.2,1.15361]
[1759886782119,4.48844945,4488.3,4488.2,0.7528]
[1759886783918,0.7337,4487.7,4487.6,4.15176]
[1759886784222,0.7337,4487.7,4487.6,5.11874991]
[1759886784418,0.4129,4487.7,4487.6,5.11874991]
[1759886787121,0.7441,4487.7,4487.6,5.11874991]
[1759886787626,4.5124951,4487.7,4487.6,3.96508991]
[1759886788323,4.5124951,4487.7,4487.1,1.00227]
[1759886788324,1.15738,4487.4,4487.1,4.38410323]
[1759886788514,0.7565,4487.3,4487.2,1.1588]
[1759886788717,0.7565,4487.3,4487.2,1.91608991]
[1759886789130,0.4253,4487.3,4487.2,1.91608991]
[1759886790126,0.7565,4487.3,4487.2,1.91608991]
[1759886790526,1.15739,4487.3,4487.2,1.91608991]
[1759886791023,0.2079,4487.7,4487.6,0.40085]
[1759886791219,0.60875,4487.7,4487.6,4.78883991]
[1759886791415,4.55637751,4487.7,4487.6,4.78883991]
[1759886791619,4.55637751,4487.7,4487.6,5.12383991]
[1759886793617,3.60692751,4487.7,4487.6,5.12383991]
[1759886793822,0.47778982,4487.7,4487.6,5.88112982]
[1759886794029,0.47778982,4487.7,4487.6,5.12383991]
[1759886795024,0.47778982,4487.7,4487.6,5.34783991]
[1759886795225,1.15732,4488.1,4488.0,0.94942]
[1759886795525,4.51599196,4488.1,4488.0,1.70670991]
[1759886795728,0.7565,4487.7,4487.6,4.92494991]
[1759886795929,0.7565,4487.7,4487.6,5.34784991]
[1759886795930,1.23727968,4487.7,4487.6,5.34784991]
[1759886796131,1.23727968,4487.7,4487.6,5.12384991]
[1759886796632,0.90607968,4487.7,4487.6,5.12384991]
[1759886797528,1.23727968,4487.7,4487.6,5.12384991]
[1759886799432,0.90607968,4487.7,4487.6,5.12384991]
[1759886800029,0.48077968,4487.7,4487.6,5.12384991]
[1759886800230,0.40082,4488.1,4487.8,0.7429]
[1759886800422,0.40082,4488.1,4487.9,0.3333]
[1759886800423,0.70237099,4488.0,4487.9,0.3333]
[1759886800628,3.65601259,4488.0,4487.9,1.50018991]
[1759886801135,3.65601259,4488.0,4487.9,1.90101991]
[1759886801639,4.59723259,4488.0,4487.9,1.14373]
[1759886801837,4.59723259,4488.0,4487.9,1.90101991]
[1759886802830,4.59723259,4488.0,4487.9,1.09058991]
[1759886803030,4.59723259,4488.0,4487.9,1.49141991]
[1759886803230,4.59723259,4488.0,4487.9,1.69651991]
[1759886803429,5.00088259,4488.0,4487.6,3.2078]
[1759886803734,5.00088259,4488.0,4487.4,0.75728991]
[1759886803735,0.7618,4487.5,4487.4,0.73418]
[1759886803922,0.7618,4487.5,4487.4,0.93928]
[1759886803923,1.24277099,4487.5,4487.4,0.93928]
[1759886804130,4.12768239,4487.5,4487.4,0.93928]
[1759886804434,4.52855239,4487.5,4487.4,0.93928]
[1759886805135,4.12768239,4487.5,4487.4,1.14378]
[1759886805926,3.36588239,4487.5,4487.4,1.14378]
[1759886806127,0.764404,4488.3,4488.2,0.5384]
[1759886806327,0.84151,4488.2,4488.1,0.75728991]
[1759886806535,4.28889608,4488.2,4488.1,1.49139991]
[1759886807438,4.28889608,4488.2,4488.1,1.69649991]
[1759886808539,4.28889608,4488.2,4488.1,1.90099991]
[1759886809237,0.002604,4488.3,4488.2,0.40081]
[1759886809432,1.20088295,4489.3,4489.1,0.3333]
[1759886809631,0.4454,4489.2,4489.1,0.7429]
[1759886809836,3.90441371,4489.2,4489.1,0.7429]
[1759886810134,3.90441371,4489.2,4489.1,1.14363]
[1759886810337,3.90618222,4489.2,4489.1,1.14577961]
[1759886810737,3.90618222,4489.2,4489.1,0.00214961]
[1759886815538,3.90618222,4489.2,4489.1,0.94127961]
[1759886815539,3.68218222,4489.2,4489.1,0.94127961]
[1759886815738,3.68218222,4489.2,4489.1,1.14577961]
[1759886815950,3.58508222,4489.2,4489.1,1.14577961]
[1759886816445,3.90618222,4489.2,4489.1,1.14577961]
[1759886817735,3.58508222,4489.2,4489.1,1.14577961]
[1759886817935,3.92348222,4489.2,4489.1,1.14577961]
[1759886818137,4.40135772,4489.2,4489.1,1.14577961]
[1759886818337,3.39825772,4489.2,4489.1,1.14577961]
[1759886818741,3.61115772,4489.2,4489.1,1.14577961]
[1759886819843,4.56107772,4489.2,4489.1,0.00214961]
[1759886820445,4.16035772,4489.2,4489.1,1.14357961]
[1759886820648,4.56107772,4489.2,4489.1,1.14357961]
[1759886821146,4.56107772,4489.2,4489.1,0.74284961]
[1759886821341,4.56107772,4489.2,4489.1,0.00214961]
[1759886821546,4.16035772,4489.2,4489.1,0.93427961]
[1759886821741,4.04595772,4489.2,4489.1,1.14357961]
[1759886821935,4.44667772,4489.2,4489.1,0.74284961]